bitfinex/quotes_BTCUSD_20241021
["timestamp","ask_amount","ask_price","bid_price","bid_amount"]
[1729472420658,0.001638,69178.0,69177.0,0.49699211]
[1729472422267,0.001638,69178.0,69177.0,0.36730074]
[1729472422475,0.001638,69178.0,69177.0,0.49699211]
[1729472422805,0.0942,69184.0,69183.0,0.144544]
[1729472423011,0.0942,69184.0,69183.0,0.21832959]
[1729472423235,0.0942,69184.0,69183.0,0.32646662]
[1729472427419,0.0942,69184.0,69183.0,0.21832959]
[1729472428075,0.0942,69184.0,69183.0,0.32649143]
[1729472428548,0.0942,69184.0,69183.0,0.21832959]
[1729472428948,0.0942,69184.0,69183.0,0.21835143]
[1729472429135,0.0942,69184.0,69183.0,0.16860081]
[1729472429332,0.0942,69184.0,69183.0,0.21844533]
[1729472429533,0.0942,69184.0,69183.0,0.19027234]
[1729472429759,0.0942,69184.0,69183.0,0.2401172]
[1729472429976,0.0942,69184.0,69183.0,0.21844567]
[1729472432026,0.095858,69184.0,69183.0,0.21844567]
[1729472435731,0.001658,69184.0,69183.0,0.36740482]
[1729472436703,0.001658,69184.0,69183.0,0.36739743]
[1729472437201,0.001658,69184.0,69183.0,0.55928237]
[1729472437454,0.001658,69184.0,69183.0,0.36739743]
[1729472438906,0.001658,69184.0,69183.0,0.55932253]
[1729472439321,0.001658,69184.0,69183.0,0.36739743]
[1729472439746,0.001658,69184.0,69183.0,0.55932253]
[1729472440161,0.001658,69184.0,69183.0,0.50947131]
[1729472440574,0.001658,69184.0,69183.0,0.37573148]
[1729472441050,0.001658,69184.0,69183.0,0.36736889]
[1729472442262,0.001658,69184.0,69183.0,0.3673671]
[1729472443739,0.001658,69184.0,69183.0,0.17979277]
[1729472443740,0.097958,69184.0,69183.0,0.17979277]
[1729472443948,0.097958,69184.0,69183.0,0.07386711]
[1729472443949,0.176858,69184.0,69183.0,0.07386711]
[1729472444150,0.176858,69184.0,69183.0,0.0883124]
[1729472444563,0.176858,69184.0,69183.0,0.07386711]
[1729472445001,0.176858,69184.0,69183.0,0.0883124]
[1729472447305,0.176858,69184.0,69183.0,0.08833226]
[1729472448133,0.176858,69184.0,69183.0,0.23287626]
[1729472448345,0.176858,69184.0,69183.0,0.3484165]
[1729472448492,0.176858,69184.0,69183.0,0.21842972]
[1729472449108,0.097958,69184.0,69183.0,0.23287562]
[1729472449328,0.097958,69184.0,69183.0,0.23287529]
[1729472449525,0.097958,69184.0,69183.0,0.21842972]
[1729472450466,0.097958,69184.0,69183.0,0.23287509]
[1729472450734,0.097958,69184.0,69183.0,0.08833108]
[1729472451242,0.3188,69184.0,69183.0,0.07388572]
[1729472451664,0.3188,69184.0,69183.0,0.08259877]
[1729472451895,0.3188,69184.0,69183.0,0.07214144]
[1729472452305,0.3188,69184.0,69183.0,0.0825953]
[1729472452501,0.3188,69184.0,69183.0,0.07388218]
[1729472452728,0.3188,69184.0,69183.0,0.0825953]
[1729472453377,0.3188,69184.0,69183.0,0.07388218]
[1729472453569,0.3188,69184.0,69183.0,0.08259419]
[1729472454297,0.3188,69184.0,69183.0,0.04984055]
[1729472454599,0.59575915,69184.0,69183.0,0.09987076]
[1729472454829,0.59575915,69184.0,69183.0,0.04608178]
[1729472455135,0.59575915,69184.0,69183.0,0.00522498]
[1729472455536,0.272552,69179.0,69178.0,0.000829]
[1729472455737,0.59751115,69179.0,69178.0,0.02523084]
[1729472456160,0.59751115,69179.0,69178.0,0.01687669]
[1729472456605,0.59751115,69179.0,69178.0,0.02522704]
[1729472457148,0.59751115,69179.0,69178.0,0.01687669]
[1729472457379,0.59751115,69179.0,69178.0,0.02522428]
[1729472459187,0.59751115,69179.0,69178.0,0.02522243]
[1729472459425,0.59751115,69179.0,69178.0,0.01687669]
[1729472461085,0.59751115,69179.0,69178.0,0.01686182]
[1729472464698,0.59751115,69179.0,69178.0,0.00604972]
[1729472468499,0.59916915,69179.0,69178.0,0.000829]
[1729472468699,0.59916915,69179.0,69178.0,0.00603971]
[1729472472993,0.59916915,69179.0,69178.0,0.00519028]
[1729472473198,0.59916915,69179.0,69178.0,0.01457985]
[1729472474079,0.75597996,69179.0,69178.0,0.00376578]
[1729472474339,0.75597996,69179.0,69169.0,0.000828]
[1729472474340,0.267571,69170.0,69169.0,0.000828]
[1729472474548,0.361971,69170.0,69169.0,0.00917369]
[1729472474749,0.361971,69170.0,69169.0,0.01998854]
[1729472475486,0.443671,69170.0,69169.0,0.01998854]
[1729472475869,0.443671,69170.0,69169.0,0.01164285]
[1729472476241,0.443671,69170.0,69169.0,0.0199882]
[1729472477189,0.59763015,69170.0,69169.0,0.0199882]
[1729472478189,0.59263015,69170.0,69169.0,0.0199882]
[1729472478381,0.0944,69170.0,69169.0,0.0199882]
[1729472478581,0.338971,69170.0,69169.0,0.0199882]
[1729472478902,0.1944,69170.0,69169.0,0.0199882]
[1729472479794,0.0944,69170.0,69169.0,0.0199882]
[1729472480006,0.238971,69170.0,69169.0,0.0199882]
[1729472480270,0.338971,69170.0,69169.0,0.03730219]
[1729472481056,0.4780814,69170.0,69169.0,0.03730219]
[1729472481264,0.4780814,69170.0,69169.0,0.0199882]
[1729472481265,0.5010814,69170.0,69169.0,0.0199882]
[1729472481826,0.438271,69170.0,69169.0,0.0199882]
[1729472483191,0.438271,69170.0,69169.0,0.01960679]
[1729472483388,0.438271,69170.0,69169.0,0.04776541]
[1729472485196,0.438271,69170.0,69169.0,0.0529828]
[1729472485612,0.0944,69170.0,69169.0,0.0529828]
[1729472485825,0.338971,69170.0,69169.0,0.0529828]
[1729472486925,0.338971,69170.0,69169.0,0.0529891]
[1729472490606,0.338971,69170.0,69169.0,0.000828]
[1729472490816,0.338971,69170.0,69169.0,0.0530002]
[1729472493096,0.338971,69170.0,69169.0,0.05267898]
[1729472494827,0.338971,69170.0,69169.0,0.05269126]
[1729472497369,0.338971,69170.0,69169.0,0.07436871]
[1729472497685,0.338971,69170.0,69169.0,0.05269126]
[1729472497893,0.338971,69170.0,69169.0,0.06353392]
[1729472498109,0.338971,69170.0,69169.0,0.05269758]
[1729472498329,0.33878667,69170.0,69169.0,0.05269758]
[1729472498536,0.33878667,69170.0,69169.0,0.07437672]
[1729472498735,0.33878667,69170.0,69169.0,0.07437664]
[1729472499146,0.33878667,69170.0,69169.0,0.05269758]
[1729472499388,0.33878667,69170.0,69169.0,0.0743771]
[1729472500331,0.33878667,69170.0,69169.0,0.07438094]
[1729472500488,0.33878667,69170.0,69169.0,0.05269758]
[1729472500692,0.33878667,69170.0,69169.0,0.07438104]
[1729472500895,0.33878667,69170.0,69169.0,0.1177061]
[1729472501793,0.33878667,69170.0,69169.0,0.0936961]
[1729472502024,0.33878667,69170.0,69169.0,0.11770775]
[1729472502263,0.075,69174.0,69169.0,0.07438269]
[1729472502264,0.0989,69174.0,69169.0,0.07438269]
[1729472502431,0.21563652,69177.0,69173.0,0.07370975]
[1729472502631,0.21563652,69177.0,69176.0,0.04333685]
[1729472502841,0.36019252,69177.0,69176.0,0.11721276]
[1729472503176,0.1302744,69177.0,69176.0,0.08257842]
[1729472503306,0.1302744,69177.0,69176.0,0.07387591]
[1729472503526,0.1302744,69177.0,69176.0,0.11721115]
[1729472503725,0.2302744,69177.0,69176.0,0.11721115]
[1729472504412,0.2302744,69177.0,69176.0,0.1172109]
[1729472504865,0.2302744,69177.0,69176.0,0.09552106]
[1729472505090,0.2302744,69177.0,69176.0,0.11719968]
[1729472505525,0.2302744,69177.0,69176.0,0.12803899]
[1729472505750,0.2302744,69177.0,69176.0,0.084704]
[1729472505946,0.2302744,69177.0,69176.0,0.07386469]
[1729472507488,0.30903649,69177.0,69176.0,0.09551802]
[1729472507635,0.0932,69177.0,69176.0,0.02818221]
[1729472507815,0.0932,69177.0,69176.0,0.05217554]
[1729472508241,0.337756,69177.0,69176.0,0.05217554]
[1729472508460,0.32355419,69177.0,69176.0,0.05217554]
[1729472509406,0.40145419,69177.0,69176.0,0.05217554]
[1729472509632,0.57841334,69177.0,69176.0,0.04174268]
[1729472509882,0.57841334,69177.0,69176.0,0.02439978]
[1729472510302,0.57841334,69177.0,69176.0,0.01605449]
[1729472511119,0.57841334,69177.0,69176.0,0.00521518]
[1729472511905,0.005,69173.0,69169.0,0.00050678]
[1729472512263,0.445071,69170.0,69169.0,0.00050678]
[1729472512512,0.59403015,69170.0,69169.0,0.02490073]
[1729472513052,0.59403015,69170.0,69169.0,0.02402912]
[1729472513251,0.59403015,69170.0,69169.0,0.02330328]
[1729472513915,0.5873343,69170.0,69169.0,0.02330328]
[1729472515193,0.5873343,69170.0,69169.0,0.01083462]
[1729472515433,0.5873343,69170.0,69169.0,0.01917825]
[1729472515639,0.5873343,69170.0,69169.0,0.02752123]
[1729472515847,0.5873343,69170.0,69169.0,0.0191776]
[1729472519572,0.5883343,69170.0,69169.0,0.0191776]
[1729472520052,0.5883343,69170.0,69169.0,0.01083462]
[1729472520252,0.5883343,69170.0,69168.0,0.000828]
[1729472520253,0.364673,69169.0,69168.0,0.000828]
[1729472520452,0.51363215,69169.0,69168.0,0.000828]
[1729472523608,0.52063215,69169.0,69168.0,0.000828]
[1729472525345,0.52063215,69169.0,69168.0,0.00603683]
[1729472525779,0.251573,69169.0,69168.0,0.02519647]
[1729472526006,0.007,69169.0,69168.0,0.24084952]
[1729472526216,0.007,69169.0,69168.0,0.13959278]
[1729472526425,0.007,69169.0,69168.0,0.16017735]
[1729472527034,0.144559,69176.0,69168.0,0.16017735]
[1729472527236,0.21729452,69177.0,69168.0,0.16017735]
[1729472527237,0.36185252,69177.0,69173.0,0.04330832]
[1729472527471,0.21729452,69177.0,69174.0,0.11706446]
[1729472527711,0.21729452,69177.0,69175.0,0.09541575]
[1729472527712,0.144559,69176.0,69175.0,0.09541575]
[1729472527952,0.144559,69176.0,69175.0,0.11705756]
[1729472528189,0.144559,69176.0,69175.0,0.09541575]
[1729472528635,0.146215,69177.0,69175.0,0.09541575]
[1729472528860,0.146215,69177.0,69176.0,0.00520762]
[1729472529117,0.001658,69177.0,69176.0,0.26159528]
[1729472529360,0.001658,69177.0,69176.0,0.53763775]
[1729472529609,0.001658,69177.0,69176.0,0.3857878]
[1729472529819,0.001658,69177.0,69176.0,0.2951878]
[1729472530040,0.001658,69177.0,69176.0,0.1506298]
[1729472530255,0.13200486,69177.0,69176.0,0.0737298]
[1729472530457,0.13200486,69177.0,69176.0,0.13865277]
[1729472530664,0.13200486,69177.0,69176.0,0.09536899]
[1729472530864,0.13200486,69177.0,69176.0,0.05209087]
[1729472532299,0.12918201,69177.0,69176.0,0.05209087]
[1729472535796,0.144556,69177.0,69176.0,0.02393551]
[1729472535993,0.144556,69177.0,69176.0,0.03474484]
[1729472536198,0.144556,69177.0,69176.0,0.05203978]
[1729472537380,0.144556,69177.0,69176.0,0.05203911]
[1729472537856,0.144556,69177.0,69176.0,0.05203923]
[1729472538667,0.144556,69177.0,69176.0,0.04163206]
[1729472538875,0.14456,69176.0,69172.0,0.04327489]
[1729472539081,0.101658,69178.0,69176.0,0.02810146]
[1729472539317,0.246212,69178.0,69177.0,0.00832488]
[1729472539472,0.001658,69178.0,69177.0,0.04162834]
[1729472539669,0.001658,69178.0,69173.0,0.04327489]
[1729472539670,0.001658,69178.0,69174.0,0.04327489]
[1729472540091,0.144559,69176.0,69174.0,0.04327489]
[1729472540298,0.144559,69176.0,69171.0,0.23111778]
[1729472540299,0.001658,69178.0,69176.0,0.00181406]
[1729472540508,0.144556,69177.0,69176.0,0.00181406]
[1729472540723,0.144556,69177.0,69176.0,0.01742174]
[1729472540950,0.144556,69177.0,69176.0,0.05384253]
[1729472541612,0.001658,69178.0,69176.0,0.05384253]
[1729472541801,0.146214,69177.0,69176.0,0.00181406]
[1729472541977,0.001658,69177.0,69176.0,0.05383698]
[1729472542381,0.146214,69177.0,69176.0,0.05383698]
[1729472542959,0.001658,69177.0,69176.0,0.05383587]
[1729472543137,0.001658,69177.0,69176.0,0.42805302]
[1729472543339,0.001658,69177.0,69176.0,0.54483734]
[1729472543538,0.001658,69177.0,69176.0,0.45833591]
[1729472543772,0.001658,69177.0,69176.0,0.53616427]
[1729472544180,0.001658,69177.0,69176.0,0.44966284]
[1729472544384,0.001658,69177.0,69176.0,0.54481087]
[1729472544758,0.001658,69177.0,69176.0,0.53613971]
[1729472544964,0.001658,69177.0,69176.0,0.5448109]
[1729472545393,0.001658,69177.0,69176.0,0.5448105]
[1729472546222,0.001502,69178.0,69177.0,0.144556]
[1729472546421,0.001502,69178.0,69177.0,0.21818763]
[1729472546618,0.001502,69178.0,69177.0,0.28302623]
[1729472547648,0.001502,69178.0,69177.0,0.13847023]
[1729472547799,0.001502,69178.0,69177.0,0.09524515]
[1729472548001,0.001502,69178.0,69177.0,0.05202181]
[1729472548408,0.146056,69178.0,69177.0,0.05202181]
[1729472549653,0.146056,69178.0,69177.0,0.02392944]
[1729472549829,0.146056,69178.0,69177.0,0.05202674]
[1729472553404,0.146056,69178.0,69177.0,0.07364005]
[1729472554332,0.001502,69178.0,69177.0,0.02396888]
[1729472554673,0.001658,69179.0,69178.0,0.14587458]
[1729472554872,0.001658,69179.0,69178.0,0.21129787]
[1729472555009,0.001658,69179.0,69178.0,0.262858]
[1729472555215,0.001658,69179.0,69178.0,0.21963466]
[1729472555427,0.001658,69184.0,69178.0,0.11829688]
[1729472555642,0.001658,69184.0,69183.0,0.144544]
[1729472555815,0.001658,69184.0,69183.0,0.21830408]
[1729472556686,0.001658,69184.0,69183.0,0.08245347]
[1729472556878,0.001658,69184.0,69183.0,0.22699747]
[1729472557895,0.001658,69184.0,69183.0,0.1943352]
[1729472558145,0.001658,69184.0,69183.0,0.21622418]
[1729472558397,0.001658,69184.0,69183.0,0.22705662]
[1729472559573,0.001658,69184.0,69183.0,0.21836248]
[1729472560208,0.00033754,69184.0,69183.0,0.07381848]
[1729472561132,0.00033754,69184.0,69183.0,0.21836248]
[1729472561358,0.00033754,69184.0,69183.0,0.07381848]
[1729472561558,0.00033754,69184.0,69183.0,0.21836248]
[1729472561965,0.00033754,69184.0,69183.0,0.07381848]
[1729472563451,0.14487954,69184.0,69183.0,0.07381848]
[1729472563886,0.14487954,69184.0,69183.0,0.05215359]
[1729472563887,0.32047954,69184.0,69183.0,0.05215359]
[1729472566927,0.34347954,69184.0,69183.0,0.05215359]
[1729472567122,0.44347954,69184.0,69183.0,0.05215359]
[1729472567420,0.44347954,69184.0,69183.0,0.04172251]
[1729472568021,0.44347954,69184.0,69183.0,0.0243906]
[1729472568247,0.60043869,69184.0,69183.0,0.0243906]
[1729472568426,0.59743869,69184.0,69183.0,0.0243906]
[1729472568842,0.59743869,69184.0,69183.0,0.01083244]
[1729472569166,0.144554,69178.0,69177.0,0.000829]
[1729472569415,0.144554,69178.0,69177.0,0.05297413]
[1729472569618,0.244554,69178.0,69177.0,0.05297413]
[1729472570940,0.248554,69178.0,69177.0,0.05297413]
[1729472572701,0.248554,69178.0,69177.0,0.02480453]
[1729472572897,0.248554,69178.0,69177.0,0.05296095]
[1729472573345,0.24317421,69178.0,69177.0,0.05296095]
[1729472574136,0.23917421,69178.0,69177.0,0.05296095]
[1729472574338,0.24117421,69178.0,69177.0,0.05296095]
[1729472574858,0.23917421,69178.0,69177.0,0.05296095]
[1729472575212,0.24017421,69178.0,69177.0,0.09621194]
[1729472575413,0.23917421,69178.0,69177.0,0.05296095]
[1729472575653,0.23917421,69178.0,69177.0,0.09621194]
[1729472575862,0.23917421,69178.0,69177.0,0.05296095]
[1729472576072,0.23917421,69178.0,69177.0,0.09628009]
[1729472577978,0.24083221,69178.0,69177.0,0.09628009]
[1729472579359,0.24083221,69178.0,69177.0,0.05296095]
[1729472579560,0.24083221,69178.0,69177.0,0.09628009]
[1729472579954,0.24083221,69178.0,69177.0,0.02477476]
[1729472580161,0.24083221,69178.0,69177.0,0.0529257]
[1729472581407,0.24083221,69178.0,69177.0,0.03730868]
[1729472581608,0.24083221,69178.0,69177.0,0.05292351]
[1729472582128,0.33563221,69178.0,69177.0,0.05292351]
[1729472582542,0.33563221,69178.0,69177.0,0.000829]
[1729472582750,0.41433221,69178.0,69177.0,0.01436074]
[1729472582992,0.41433221,69178.0,69177.0,0.03168306]
[1729472583255,0.58629136,69178.0,69177.0,0.03168306]
[1729472583512,0.58629136,69178.0,69177.0,0.02518719]
[1729472584046,0.7092396,69178.0,69177.0,0.01685958]
[1729472584289,0.7092396,69178.0,69177.0,0.00603313]
[1729472584290,0.7112396,69178.0,69177.0,0.00603313]
[1729472584507,0.7112396,69178.0,69177.0,0.000829]
[1729472584711,0.7092396,69178.0,69177.0,0.000829]
[1729472584910,0.7162396,69178.0,69177.0,0.000829]
[1729472585335,0.7092396,69178.0,69177.0,0.000829]
[1729472585806,0.7282396,69178.0,69177.0,0.000829]
[1729472585996,0.7192396,69178.0,69177.0,0.000829]
[1729472586279,0.7292396,69178.0,69177.0,0.000829]
[1729472586500,0.61129136,69178.0,69177.0,0.000829]
[1729472587212,0.61329136,69178.0,69177.0,0.000829]
[1729472588464,0.60329136,69178.0,69177.0,0.000829]
[1729472588678,0.60129136,69178.0,69177.0,0.000829]
[1729472588899,0.61529136,69178.0,69177.0,0.000829]
[1729472589123,0.60129136,69178.0,69177.0,0.000829]
[1729472589538,0.61529136,69178.0,69177.0,0.000829]
[1729472591242,0.60129136,69178.0,69177.0,0.000829]
[1729472591662,0.61529136,69178.0,69177.0,0.000829]
[1729472593915,0.61729136,69178.0,69177.0,0.000829]
[1729472594507,0.58229136,69178.0,69177.0,0.000829]
[1729472595926,0.60529136,69178.0,69177.0,0.000829]
[1729472596531,0.59129136,69178.0,69177.0,0.000829]
[1729472596736,0.59529136,69178.0,69177.0,0.000829]
[1729472597114,0.59129136,69178.0,69177.0,0.000829]
[1729472597314,0.59529136,69178.0,69177.0,0.000829]
[1729472598308,0.60029136,69178.0,69177.0,0.000829]
[1729472598786,0.60129136,69178.0,69177.0,0.000829]
[1729472599012,0.60829136,69178.0,69177.0,0.000829]
[1729472599367,0.60129136,69178.0,69177.0,0.000829]
[1729472599736,0.60929136,69178.0,69177.0,0.000829]
[1729472603584,0.52059136,69178.0,69177.0,0.000829]
[1729472604175,0.53059136,69178.0,69177.0,0.000829]
[1729472605474,0.24883221,69178.0,69177.0,0.000829]
[1729472605662,0.009658,69178.0,69177.0,0.000829]
[1729472606201,0.009658,69178.0,69177.0,0.145385]
[1729472606405,0.009658,69178.0,69177.0,0.000829]
[1729472606961,0.001658,69178.0,69177.0,0.000829]
[1729472607212,0.001658,69178.0,69177.0,0.221285]
[1729472607405,0.001658,69178.0,69177.0,0.46864415]
[1729472607607,0.001658,69178.0,69177.0,0.55721661]
[1729472607809,0.001658,69178.0,69177.0,0.46864415]
[1729472608031,0.001658,69178.0,69177.0,0.47364415]
[1729472608214,0.001658,69178.0,69177.0,0.60350284]
[1729472608420,0.001658,69178.0,69177.0,0.47364415]
[1729472608825,0.001658,69178.0,69177.0,0.47564415]
[1729472609647,0.001658,69178.0,69177.0,0.46864415]
[1729472609832,0.001658,69178.0,69177.0,0.28317198]
[1729472610006,0.001658,69178.0,69177.0,0.26156522]
[1729472610239,0.001658,69178.0,69177.0,0.23995822]
[1729472610438,0.001658,69178.0,69177.0,0.26156522]
[1729472610648,0.001658,69178.0,69177.0,0.319685]
[1729472613096,0.001658,69178.0,69177.0,0.076729]
[1729472613561,0.001658,69178.0,69177.0,0.28609883]
[1729472614006,0.001658,69178.0,69177.0,0.000829]
[1729472614007,0.146212,69178.0,69177.0,0.000829]
[1729472615922,0.246212,69178.0,69177.0,0.000829]
[1729472616317,0.269212,69178.0,69177.0,0.000829]
[1729472621223,0.273212,69178.0,69177.0,0.000829]
[1729472621466,0.269212,69178.0,69177.0,0.000829]
[1729472622742,0.274212,69178.0,69177.0,0.000829]
[1729472627543,0.251212,69178.0,69177.0,0.000829]
[1729472630647,0.274212,69178.0,69177.0,0.000829]
[1729472632479,0.60237115,69178.0,69177.0,0.000829]
[1729472633475,0.61437115,69178.0,69177.0,0.000829]
[1729472634441,0.61237115,69178.0,69177.0,0.000829]
[1729472635996,0.60737115,69178.0,69177.0,0.000829]
[1729472636208,0.61537115,69178.0,69177.0,0.000829]
[1729472637009,0.74849072,69178.0,69177.0,0.000829]
[1729472637385,0.76449072,69178.0,69177.0,0.000829]
[1729472637598,0.76449072,69178.0,69177.0,1e-06]
[1729472637818,0.75049072,69178.0,69177.0,1e-06]
[1729472637998,0.76449072,69178.0,69177.0,1e-06]
[1729472639800,0.75049072,69178.0,69177.0,1e-06]
[1729472640240,0.76449072,69178.0,69177.0,1e-06]
[1729472642865,0.75049072,69178.0,69177.0,1e-06]
[1729472643205,0.76449072,69178.0,69177.0,1e-06]
[1729472644370,0.76249072,69178.0,69177.0,1e-06]
[1729472644577,0.76449072,69178.0,69177.0,1e-06]
[1729472645593,0.62137115,69178.0,69177.0,1e-06]
[1729472645885,0.59837115,69178.0,69177.0,1e-06]
[1729472646051,0.41777115,69178.0,69177.0,1e-06]
[1729472646481,0.32417115,69178.0,69177.0,1e-06]
[1729472647036,0.31017115,69178.0,69177.0,1e-06]
[1729472647252,0.43856209,69178.0,69177.0,1e-06]
[1729472647580,0.42656209,69178.0,69177.0,1e-06]
[1729472647904,0.45956209,69178.0,69177.0,1e-06]
[1729472648513,0.63376209,69178.0,69177.0,1e-06]
[1729472649120,0.61537115,69178.0,69177.0,1e-06]
[1729472650331,0.43317115,69178.0,69177.0,1e-06]
[1729472650535,0.44317115,69178.0,69177.0,1e-06]
[1729472651580,0.256212,69178.0,69177.0,1e-06]
[1729472653419,0.40517115,69178.0,69177.0,1e-06]
[1729472653779,0.42817115,69178.0,69177.0,1e-06]
[1729472659960,0.52667115,69178.0,69177.0,1e-06]
[1729472660955,0.42817115,69178.0,69177.0,1e-06]
[1729472667963,0.42780976,69178.0,69177.0,1e-06]
[1729472670545,0.52500976,69178.0,69177.0,1e-06]
[1729472674134,0.42780976,69178.0,69177.0,1e-06]
[1729472676788,0.50800976,69178.0,69177.0,1e-06]
[1729472677024,0.74005319,69178.0,69177.0,1e-06]
[1729472677495,0.59910976,69178.0,69177.0,1e-06]
[1729472678190,0.60910976,69178.0,69177.0,1e-06]
[1729472679656,0.59910976,69178.0,69177.0,1e-06]
[1729472680112,0.61310976,69178.0,69177.0,1e-06]
[1729472680621,0.59910976,69178.0,69177.0,1e-06]
[1729472680868,0.73103954,69178.0,69177.0,1e-06]
[1729472681835,0.73303954,69178.0,69177.0,1e-06]
[1729472682305,0.73103954,69178.0,69177.0,1e-06]
[1729472684847,0.73303954,69178.0,69177.0,1e-06]
[1729472686375,0.73103954,69178.0,69177.0,1e-06]
[1729472686959,0.73303954,69178.0,69177.0,1e-06]
[1729472691182,0.61510976,69178.0,69177.0,1e-06]
[1729472692322,0.61310976,69178.0,69177.0,1e-06]
[1729472692775,0.51490976,69178.0,69177.0,1e-06]
[1729472694125,0.53790976,69178.0,69177.0,1e-06]
[1729472695474,0.44680976,69178.0,69177.0,1e-06]
[1729472696877,0.43680976,69178.0,69177.0,1e-06]
[1729472697111,0.42280976,69178.0,69177.0,1e-06]
[1729472697365,0.43280976,69178.0,69177.0,1e-06]
[1729472697558,0.44180976,69178.0,69177.0,1e-06]
[1729472702987,0.25485061,69178.0,69177.0,1e-06]
[1729472704688,0.27785061,69178.0,69177.0,1e-06]
[1729472710478,0.42680976,69178.0,69177.0,1e-06]
[1729472713085,0.43180976,69178.0,69177.0,1e-06]
[1729472714039,0.44180976,69178.0,69177.0,1e-06]
[1729472714294,0.61430976,69178.0,69177.0,1e-06]
[1729472740666,0.61630976,69178.0,69177.0,1e-06]
[1729472742347,0.60730976,69178.0,69177.0,1e-06]
[1729472742754,0.746582,69178.0,69177.0,1e-06]
[1729472742966,0.737582,69178.0,69177.0,1e-06]
[1729472743439,0.751582,69178.0,69177.0,1e-06]
[1729472743654,0.79370463,69178.0,69177.0,1e-06]
[1729472745420,0.87982068,69178.0,69177.0,1e-06]
[1729472745647,0.79370463,69178.0,69177.0,1e-06]
[1729472747573,0.85821333,69178.0,69177.0,1e-06]
[1729472747991,0.72794109,69178.0,69177.0,1e-06]
[1729472749661,0.66343239,69178.0,69177.0,1e-06]
[1729472749886,0.72794109,69178.0,69177.0,1e-06]
[1729472750133,0.66343239,69178.0,69177.0,1e-06]
[1729472752253,0.66143239,69178.0,69177.0,1e-06]
[1729472752473,0.76278925,69178.0,69177.0,1e-06]
[1729472753131,0.68925039,69178.0,69177.0,1e-06]
[1729472753649,0.68725039,69178.0,69177.0,1e-06]
[1729472753895,0.60485039,69178.0,69177.0,1e-06]
[1729472754911,0.60685039,69178.0,69177.0,1e-06]
[1729472755143,0.60485039,69178.0,69177.0,1e-06]
[1729472755942,0.59085039,69178.0,69177.0,1e-06]
[1729472756368,0.60685039,69178.0,69177.0,1e-06]
[1729472756591,0.72020799,69178.0,69177.0,1e-06]
[1729472756820,0.73220799,69178.0,69177.0,1e-06]
[1729472757318,0.81320799,69178.0,69177.0,1e-06]
[1729472758279,0.85529863,69178.0,69177.0,1e-06]
[1729472759222,0.91981801,69178.0,69177.0,1e-06]
[1729472759451,0.85529863,69178.0,69177.0,1e-06]
[1729472759681,0.91981801,69178.0,69177.0,1e-06]
[1729472759976,0.85529863,69178.0,69177.0,1e-06]
[1729472763355,0.91981801,69178.0,69177.0,1e-06]
[1729472763584,0.91980457,69178.0,69177.0,1e-06]
[1729472763834,0.91980601,69178.0,69177.0,1e-06]
[1729472764769,0.91981094,69178.0,69177.0,1e-06]
[1729472766932,0.85529863,69178.0,69177.0,1e-06]
[1729472767413,0.85529863,69178.0,69168.0,1e-06]
[1729472767414,0.454473,69169.0,69168.0,1e-06]
[1729472767650,0.60343215,69169.0,69168.0,1e-06]
[1729472770302,0.61743215,69169.0,69168.0,1e-06]
[1729472770539,0.60343215,69169.0,69168.0,1e-06]
[1729472770992,0.61743215,69169.0,69168.0,1e-06]
[1729472771213,0.75856592,69169.0,69168.0,1e-06]
[1729472773329,0.61543215,69169.0,69168.0,1e-06]
[1729472773565,0.53933215,69169.0,69168.0,1e-06]
[1729472774031,0.54133215,69169.0,69168.0,1e-06]
[1729472775208,0.53933215,69169.0,69168.0,1e-06]
[1729472776417,0.44553215,69169.0,69168.0,1e-06]
[1729472777602,0.56597227,69169.0,69168.0,1e-06]
[1729472782971,0.44553215,69169.0,69168.0,1e-06]
[1729472783227,0.41253215,69169.0,69168.0,0.078201]
[1729472783457,0.42253215,69169.0,69168.0,0.078201]
[1729472783708,0.42253215,69169.0,69168.0,1e-06]
[1729472784166,0.53017592,69169.0,69168.0,1e-06]
[1729472784412,0.54417592,69169.0,69168.0,1e-06]
[1729472784665,0.56717592,69169.0,69168.0,1e-06]
[1729472786038,0.56883392,69169.0,69168.0,1e-06]
[1729472786754,0.55483392,69169.0,69168.0,1e-06]
[1729472787238,0.56783392,69169.0,69168.0,1e-06]
[1729472805531,0.44619015,69169.0,69168.0,1e-06]
[1729472813864,0.66182667,69169.0,69168.0,1e-06]
[1729472814092,0.53719015,69169.0,69168.0,1e-06]
[1729472817565,0.44619015,69169.0,69168.0,1e-06]
[1729472817846,0.40819015,69169.0,69168.0,1e-06]
[1729472818097,0.40819015,69169.0,69168.0,0.21957859]
[1729472818098,0.159231,69169.0,69168.0,0.21957859]
[1729472818330,0.159231,69169.0,69168.0,0.26295626]
[1729472818564,0.159231,69169.0,69168.0,0.26754257]
[1729472818832,0.159231,69169.0,69168.0,0.22416971]
[1729472819278,0.259231,69169.0,69168.0,0.22416971]
[1729472819520,0.259231,69169.0,69168.0,0.26754258]
[1729472819521,0.246231,69169.0,69168.0,0.26754258]
[1729472819762,0.246231,69169.0,69168.0,0.22416971]
[1729472820763,0.251231,69169.0,69168.0,0.22416971]
[1729472820991,0.246231,69169.0,69168.0,0.22416971]
[1729472821480,0.246231,69169.0,69168.0,0.10711204]
[1729472821701,0.246231,69169.0,69168.0,0.09888348]
[1729472822878,0.41819015,69169.0,69168.0,0.02058348]
[1729472823106,0.41819015,69169.0,69168.0,0.00973429]
[1729472823339,0.41819015,69169.0,69168.0,0.00514317]
[1729472823559,0.42219015,69169.0,69168.0,0.00514317]
[1729472823783,0.41819015,69169.0,69168.0,0.00513341]
[1729472824271,0.41919015,69169.0,69168.0,0.00513341]
[1729472824517,0.41919015,69169.0,69168.0,0.01596115]
[1729472825448,0.41919015,69169.0,69168.0,0.01596106]
[1729472825899,0.42419015,69169.0,69168.0,0.01596106]
[1729472826131,0.42419015,69169.0,69168.0,1e-06]
[1729472826132,0.72149972,69169.0,69168.0,1e-06]
[1729472827311,0.42419015,69169.0,69168.0,1e-06]
[1729472827788,0.42419015,69169.0,69168.0,0.00513368]
[1729472828345,0.41919015,69169.0,69168.0,0.00513367]
[1729472828765,0.41919015,69169.0,69168.0,1e-06]
[1729472829187,0.41919015,69169.0,69168.0,0.00513357]
[1729472830016,0.41919015,69169.0,69168.0,1e-06]
[1729472830911,0.41919015,69169.0,69168.0,0.00512819]